fUSD/lending_fUSD_20260329
["ID","MTS","AMOUNT","RATE_DAILY","PERIOD"]
[419012859,1774751444906,-475.0,0.00015506,2]
[419012860,1774751444916,-500.0,0.00015506,2]
[419012861,1774751444926,-500.0,0.00015506,2]
[419012862,1774751444936,-500.0,0.00015506,2]
[419012863,1774751444947,-475.0,0.00015506,2]
[419012864,1774751444958,-500.0,0.00015506,2]
[419012865,1774751444969,-500.0,0.00015506,2]
[419012866,1774751444979,-500.0,0.00015506,2]
[419012867,1774751444990,-500.0,0.00015506,2]
[419012868,1774751445001,-500.0,0.00015506,2]
[419012869,1774751445011,-500.0,0.00015506,2]
[419012870,1774751445021,-475.0,0.00015506,2]
[419012871,1774751445034,-500.0,0.00015506,2]
[419012872,1774751445045,-500.0,0.00015506,2]
[419012873,1774751445056,-500.0,0.00015506,2]
[419012874,1774751445065,-500.0,0.00015506,2]
[419012875,1774751445075,-500.0,0.00015506,2]
[419012876,1774751445086,-475.0,0.00015506,2]
[419012877,1774751445097,-500.0,0.00015506,2]
[419012878,1774751445106,-500.0,0.00015506,2]
[419012879,1774751445116,-500.0,0.00015506,2]
[419012880,1774751445126,-500.0,0.00015506,2]
[419012881,1774751445136,-475.0,0.00015506,2]
[419012882,1774751445145,-500.0,0.00015506,2]
[419012883,1774751445156,-500.0,0.00015506,2]
[419012884,1774751445165,-500.0,0.00015506,2]
[419012885,1774751445174,-475.0,0.00015506,2]
[419012886,1774751445183,-313.21374152,0.00015506,2]
[419012887,1774751445193,-500.0,0.00015506,2]
[419012888,1774751445202,-475.0,0.00015506,2]
[419012889,1774751445211,-500.0,0.00015506,2]
[419012890,1774751445220,-500.0,0.00015506,2]
[419012891,1774751445240,-500.0,0.00015506,2]
[419012892,1774751445250,-500.0,0.00015506,2]
[419012893,1774751445260,-500.0,0.00015506,2]
[419012894,1774751445270,-500.0,0.00015506,2]
[419012895,1774751445279,-500.0,0.00015506,2]
[419012896,1774751445289,-500.0,0.00015506,2]
[419012897,1774751445299,-500.0,0.00015506,2]
[419012898,1774751445309,-475.0,0.00015506,2]
[419012899,1774751445319,-500.0,0.00015506,2]
[419012900,1774751445329,-500.0,0.00015506,2]
[419012901,1774751445339,-500.0,0.00015506,2]
[419012902,1774751445348,-500.0,0.00015506,2]
[419012903,1774751445358,-500.0,0.00015506,2]
[419012904,1774751445368,-500.0,0.00015506,2]
[419012905,1774751445378,-500.0,0.00015506,2]
[419012906,1774751445388,-500.0,0.00015506,2]
[419012907,1774751445398,-500.0,0.00015506,2]
[419012908,1774751445408,-600.69561953,0.00015506,2]
[419012909,1774751445418,-500.0,0.00015506,2]
[419012910,1774751445427,-500.0,0.00015506,2]
[419012911,1774751445437,-475.0,0.00015506,2]
[419012912,1774751445446,-500.0,0.00015506,2]
[419012913,1774751445456,-448.85541599,0.00015506,2]
[419012914,1774751445466,-500.0,0.00015506,2]
[419012915,1774751445475,-475.0,0.00015506,2]
[419012916,1774751445484,-500.0,0.00015506,2]
[419012917,1774751445494,-150.0,0.00015506,2]
[419012918,1774751445503,-354.37247743,0.00015506,2]
[419012919,1774751445513,-475.0,0.00015506,2]
[419012920,1774751445522,-475.0,0.00015506,2]
[419012921,1774751445532,-475.0,0.00015506,2]
[419012922,1774751445542,-475.0,0.00015506,2]
[419012923,1774751445552,-344.59520152,0.00015506,2]
[419012924,1774751445562,-150.0,0.00015506,2]
[419012925,1774751445571,-500.0,0.00015509,2]
[419012926,1774751445581,-500.0,0.00015509,2]
[419012927,1774751445591,-500.0,0.00015509,2]
[419012928,1774751445601,-500.0,0.00015509,2]
[419012929,1774751445610,-221.42926466,0.00015509,2]
[419012930,1774751445620,-500.0,0.00015509,2]
[419012931,1774751445630,-500.0,0.00015509,2]
[419012932,1774751445639,-429.0,0.00015509,2]
[419012933,1774751445649,-500.0,0.00015509,2]
[419012934,1774751445659,-429.0,0.00015509,2]
[419012935,1774751445669,-500.0,0.00015509,2]
[419012936,1774751445679,-429.0,0.00015509,2]
[419012937,1774751445688,-500.0,0.00015509,2]
[419012938,1774751445698,-500.0,0.00015509,2]
[419012939,1774751445709,-500.0,0.00015509,2]
[419012940,1774751445718,-500.0,0.00015509,2]
[419012941,1774751445728,-500.0,0.00015509,2]
[419012942,1774751445737,-500.0,0.00015509,2]
[419012943,1774751445747,-429.0,0.00015509,2]
[419012944,1774751445757,-500.0,0.00015509,2]
[419012945,1774751445766,-500.0,0.00015509,2]
[419012946,1774751445776,-500.0,0.00015509,2]
[419012947,1774751445904,-429.0,0.00015509,2]
[419012948,1774751445914,-219.10448352,0.00015509,2]
[419012949,1774751445923,-500.0,0.00015509,2]
[419012950,1774751445933,-414.92841658,0.00015509,2]
[419012951,1774751445942,-429.0,0.00015509,2]
[419012952,1774751445952,-500.0,0.00015509,2]
[419012953,1774751445962,-429.0,0.00015509,2]
[419012954,1774751445972,-500.0,0.00015509,2]
[419012955,1774751445983,-429.0,0.00015509,2]
[419012956,1774751445992,-500.0,0.00015509,2]
[419012957,1774751446002,-500.0,0.00015509,2]
[419012958,1774751446012,-429.0,0.00015509,2]
[419012959,1774751446021,-500.0,0.00015509,2]
[419012960,1774751446031,-429.0,0.00015509,2]
[419012961,1774751446041,-583.94965812,0.00015509,2]
[419012962,1774751446051,-429.0,0.00015509,2]
[419012963,1774751446061,-429.0,0.00015509,2]
[419012964,1774751446071,-429.0,0.00015509,2]
[419012965,1774751446082,-429.0,0.00015509,2]
[419012966,1774751446092,-429.0,0.00015509,2]
[419012967,1774751446101,-429.0,0.00015509,2]
[419012968,1774751446111,-429.0,0.00015509,2]
[419012969,1774751446121,-429.0,0.00015509,2]
[419012970,1774751446131,-429.0,0.00015509,2]
[419012971,1774751446141,-429.0,0.00015509,2]
[419012972,1774751446151,-429.0,0.00015509,2]
[419012973,1774751446160,-429.0,0.00015509,2]
[419012974,1774751446170,-429.0,0.00015509,2]
[419012975,1774751446180,-452.93669017,0.00015509,2]
[419012976,1774751446189,-500.0,0.00015509,2]
[419012977,1774751446198,-500.0,0.00015509,2]
[419012978,1774751446209,-500.0,0.00015509,2]
[419012979,1774751446219,-500.0,0.00015509,2]
[419012981,1774751446231,-500.0,0.00015509,2]
[419012982,1774751446241,-500.0,0.00015509,2]
[419012983,1774751446251,-500.0,0.00015509,2]
[419012984,1774751446266,-500.0,0.00015509,2]
[419012985,1774751446277,-500.0,0.00015509,2]
[419012986,1774751446287,-500.0,0.00015509,2]
[419012987,1774751446296,-500.0,0.00015509,2]
[419012988,1774751446306,-500.0,0.00015509,2]
[419012989,1774751446316,-483.29461098,0.00015509,2]
[419012990,1774751446329,-500.0,0.00015509,2]
[419012991,1774751446339,-500.0,0.00015509,2]
[419012992,1774751446350,-500.0,0.00015509,2]
[419012993,1774751446360,-500.0,0.00015509,2]
[419012994,1774751446372,-500.0,0.00015509,2]
[419012995,1774751446382,-500.0,0.00015509,2]
[419012996,1774751446394,-500.0,0.00015509,2]
[419012997,1774751446405,-500.0,0.00015509,2]
[419012998,1774751446416,-508.56311436,0.00015509,2]
[419012999,1774751446426,-500.0,0.00015509,2]
[419013000,1774751446437,-500.0,0.00015509,2]
[419013001,1774751446447,-500.0,0.00015509,2]
[419013002,1774751446457,-500.0,0.00015509,2]
[419013003,1774751446467,-500.0,0.00015509,2]
[419013004,1774751446479,-500.0,0.00015509,2]
[419013005,1774751446490,-500.0,0.00015509,2]
[419013006,1774751446500,-500.0,0.00015509,2]
[419013007,1774751446511,-500.0,0.00015509,2]
[419013008,1774751446521,-500.0,0.00015509,2]
[419013009,1774751446532,-500.0,0.00015509,2]
[419013010,1774751446542,-500.0,0.00015509,2]
[419013011,1774751446551,-503.95632491,0.00015509,2]
[419013012,1774751446562,-500.0,0.00015509,2]
[419013013,1774751446572,-500.0,0.00015509,2]
[419013014,1774751446582,-500.0,0.00015509,2]
[419013015,1774751446592,-580.96645017,0.00015509,2]
[419013016,1774751446602,-500.0,0.00015509,2]
[419013017,1774751446611,-500.0,0.00015509,2]
[419013018,1774751446621,-500.0,0.00015509,2]
[419013019,1774751446631,-500.0,0.00015509,2]
[419013020,1774751446641,-500.0,0.00015509,2]
[419013021,1774751446650,-500.0,0.00015509,2]
[419013022,1774751446660,-500.0,0.00015509,2]
[419013023,1774751446669,-500.0,0.00015509,2]
[419013024,1774751446679,-500.0,0.00015509,2]
[419013025,1774751446689,-500.0,0.00015509,2]
[419013026,1774751446698,-500.0,0.00015509,2]
[419013027,1774751446707,-500.0,0.00015509,2]
[419013028,1774751446717,-430.0,0.00015509,2]
[419013029,1774751446726,-500.0,0.00015509,2]
[419013030,1774751446736,-500.0,0.00015509,2]
[419013031,1774751446746,-500.0,0.00015509,2]
[419013032,1774751446755,-474.21241056,0.00015509,2]
[419013033,1774751446765,-500.0,0.00015509,2]
[419013034,1774751446774,-500.0,0.00015509,2]
[419013035,1774751446783,-500.0,0.00015509,2]
[419013036,1774751446793,-500.0,0.00015509,2]
[419013037,1774751446802,-500.0,0.00015509,2]
[419013038,1774751446812,-500.0,0.00015509,2]
[419013039,1774751446821,-500.0,0.00015509,2]
[419013040,1774751446831,-152.53186786,0.00015509,2]
[419013041,1774751446840,-704.0,0.00015512,2]
[419013042,1774751446849,-704.0,0.00015512,2]
[419013043,1774751446858,-704.0,0.00015512,2]
[419013044,1774751446868,-704.0,0.00015512,2]
[419013045,1774751446878,-500.0,0.00015512,2]
[419013046,1774751446887,-704.0,0.00015512,2]
[419013047,1774751446897,-500.0,0.00015512,2]
[419013048,1774751446906,-327.14015113,0.00015512,2]
[419013049,1774751446915,-704.0,0.00015512,2]
[419013050,1774751446924,-704.0,0.00015512,2]
[419013051,1774751446933,-704.0,0.00015512,2]
[419013052,1774751446943,-704.0,0.00015512,2]
[419013053,1774751446952,-156.35128686,0.00015512,2]
[419013054,1774751446961,-704.0,0.00015512,2]
[419013055,1774751446970,-704.0,0.00015512,2]
[419013056,1774751446979,-704.0,0.00015512,2]
[419013057,1774751446989,-704.0,0.00015512,2]
[419013058,1774751446998,-704.0,0.00015512,2]
[419013059,1774751447007,-500.0,0.00015512,2]
[419013060,1774751447016,-704.0,0.00015512,2]
[419013061,1774751447026,-500.0,0.00015512,2]
[419013062,1774751447035,-704.0,0.00015512,2]
[419013063,1774751447044,-500.0,0.00015512,2]
[419013064,1774751447054,-500.0,0.00015512,2]
[419013065,1774751447063,-704.0,0.00015512,2]
[419013066,1774751447073,-500.0,0.00015512,2]
[419013068,1774751447082,-500.0,0.00015512,2]
[419013070,1774751447092,-500.0,0.00015512,2]
[419013072,1774751447102,-500.0,0.00015512,2]
[419013074,1774751447111,-500.0,0.00015512,2]
[419013076,1774751447121,-704.0,0.00015512,2]
[419013078,1774751447131,-500.0,0.00015512,2]
[419013079,1774751447140,-206.13980161,0.00015512,2]
[419013080,1774751447150,-500.0,0.00015512,2]
[419013081,1774751447159,-500.0,0.00015512,2]
[419013082,1774751447170,-704.0,0.00015512,2]
[419013083,1774751447180,-500.0,0.00015512,2]
[419013084,1774751447189,-182.16957206,0.00015512,2]
[419013085,1774751447199,-150.0,0.00015512,2]
[419013086,1774751447208,-154.31995128,0.00015512,2]
[419013087,1774751447218,-704.0,0.00015512,2]
[419013088,1774751447229,-500.0,0.00015512,2]
[419013089,1774751447239,-500.0,0.00015512,2]
[419013090,1774751447248,-390.7556468,0.00015512,2]
[419013091,1774751447258,-704.0,0.00015512,2]
[419013092,1774751447268,-150.0,0.00015512,2]
[419013093,1774751447277,-216.9963302,0.00015512,2]
[419013094,1774751447286,-500.0,0.00015512,2]
[419013095,1774751447296,-500.0,0.00015512,2]
[419013096,1774751447305,-500.0,0.00015512,2]
[419013097,1774751447315,-500.0,0.00015512,2]
[419013098,1774751447324,-150.0,0.00015512,2]
[419013099,1774751447333,-207.71494983,0.00015512,2]
[419013100,1774751447343,-500.0,0.00015512,2]
[419013101,1774751447352,-704.0,0.00015512,2]
[419013103,1774751447362,-353.36335448,0.00015512,2]
[419013105,1774751447371,-704.0,0.00015512,2]
[419013107,1774751447381,-707.6946264,0.00015512,2]
[419013108,1774751447390,-889.39669243,0.00015516,2]
[419013109,1774751447399,-466.69355566,0.00015516,2]
[419013110,1774751447408,-166.66,0.00015523,2]
[419013111,1774751447418,-154.53434814,0.00015582,2]
[419013112,1774751447427,-648.6,0.000156,2]
[419013113,1774751447436,-7380.22,0.000156,2]
[419013114,1774751447445,-709.29,0.000156,2]
[419013115,1774751447455,-1500.0,0.000156,5]
[419013116,1774751447465,-460.646561,0.00015652,7]
[419013117,1774751447474,-1077.56,0.000157,2]
[419013118,1774751447484,-1500.0,0.000157,5]
[419013119,1774751447494,-552.09,0.00015725,2]
[419013120,1774751447503,-1000.0,0.00015728,2]
[419013121,1774751447512,-1000.0,0.00015746,2]
[419013122,1774751447522,-243.59117619,0.00015749,2]
[419013123,1774751447531,-1325.36,0.00015753,2]
[419013124,1774751447540,-5888.0,0.00015755,2]
[419013125,1774751447550,-1000.0,0.00015762,2]
[419013126,1774751447560,-1000.0,0.00015766,2]
[419013127,1774751447569,-1000.0,0.00015767,2]
[419013128,1774751447578,-1000.0,0.0001577,2]
[419013129,1774751447588,-1000.0,0.00015779,2]
[419013130,1774751447596,-1137.0,0.00015781,2]
[419013131,1774751447606,-697.0,0.00015781,2]
[419013132,1774751447615,-1000.0,0.00015789,2]
[419013133,1774751447624,-42679.9001324,0.0001579,2]
[419013134,1774751447633,-1000.0,0.000158,2]
[419013135,1774751447643,-1500.0,0.000158,5]
[419013136,1774751447653,-2000.0,0.000158,2]
[419013137,1774751447663,-1000.0,0.00015801,2]
[419013138,1774751447672,-1000.0,0.00015804,2]
[419013139,1774751447682,-1000.0,0.00015815,2]
[419013140,1774751447691,-1000.0,0.00015819,2]
[419013141,1774751447787,-1000.0,0.00015826,2]
[419013142,1774751447797,-1000.0,0.00015829,2]
[419013143,1774751447806,-1000.0,0.00015831,2]
[419013144,1774751447815,-1972.50486,0.0001584,2]
[419013145,1774751447824,-1972.50487,0.0001584,2]
[419013146,1774751447834,-1000.0,0.00015844,2]
[419013147,1774751447843,-1972.50487,0.0001585,2]
[419013148,1774751447852,-1000.0,0.00015852,2]
[419013149,1774751447861,-1000.0,0.00015865,2]
[419013150,1774751447871,-1000.0,0.00015868,2]
[419013151,1774751447880,-500.0,0.00015873,2]
[419013152,1774751447889,-1000.0,0.00015873,2]
[419013153,1774751447898,-5888.0,0.00015875,2]
[419013154,1774751447907,-1000.0,0.00015887,2]
[419013155,1774751447916,-155.85026359,0.0001589,2]
[419013156,1774751447925,-2002.6659376,0.0001589,2]
[419013157,1774751447935,-1503.49998468,0.0001589,2]
[419013158,1774751447945,-1000.0,0.00015891,2]
[419013159,1774751447955,-731.49654779,0.000159,2]
[419013160,1774751447963,-1500.0,0.000159,5]
[419013161,1774751447973,-335.27257937,0.000159,2]
[419013162,1774751447983,-178.93015126,0.000159,2]
[419013163,1774751447993,-8132.3300711,0.000159,2]
[419013164,1774751448003,-562.70572857,0.000159,2]
[419013165,1774751448012,-2701.24991712,0.000159,2]
[419013166,1774751448021,-1000.0,0.00015933,2]
[419013167,1774751448031,-1000.0,0.00015935,2]
[419013168,1774751448040,-1000.0,0.00015957,2]
[419013169,1774751448050,-5000.0,0.0001596,2]
[419013170,1774751448059,-1104.40507012,0.00015962,2]
[419013171,1774751448069,-1000.0,0.00015963,2]
[419013172,1774751448078,-700.0,0.0001597,2]
[419013173,1774751448087,-700.0,0.0001597,2]
[419013174,1774751448096,-854.65118905,0.0001597,2]
[419013175,1774751448106,-249.71337092,0.0001597,2]
[419013176,1774751448116,-165.69703489,0.0001597,2]
[419013177,1774751448125,-1000.0,0.00015976,2]
[419013178,1774751448135,-121711.7502943,0.00015984,2]
[419013179,1774751448144,-28315.2070439,0.00015984,2]
[419013180,1774751448153,-219120.1515033,0.00015984,2]
[419013181,1774751448162,-151.0,0.00015984,2]
[419013182,1774751448172,-151.0,0.00015984,2]
[419013183,1774751448181,-151.0,0.00015984,2]
[419013184,1774751448190,-151.0,0.00015984,2]
[419013185,1774751448199,-295.651221,0.00015984,2]
[419013186,1774751448209,-295.651221,0.00015984,2]
[419013187,1774751448219,-295.651221,0.00015984,2]
[419013188,1774751448229,-295.651221,0.00015984,2]
[419013189,1774751448239,-151.0,0.00015984,2]
[419013190,1774751448249,-151.0,0.00015984,2]
[419013191,1774751448258,-151.0,0.00015984,2]
[419013192,1774751448268,-276.996245,0.00015984,2]
[419013193,1774751448277,-400.28079234,0.0001599,2]
[419013194,1774751448286,-151.0,0.00015997,2]
[419013195,1774751448296,-151.0,0.00015997,2]
[419013196,1774751448305,-552.09,0.00015998,2]
[419013197,1774751448315,-1252.0,0.00015998,2]
[419013198,1774751448324,-677.2242101,0.00015999,2]
[419013199,1774751448334,-666.0,0.00015999,2]
[419013200,1774751448343,-552.09,0.00015999,2]
[419013201,1774751448352,-552.09,0.00015999,2]
[419013202,1774751448362,-552.09,0.00015999,2]
[419013203,1774751448372,-552.09,0.00015999,2]
[419013204,1774751448381,-552.09,0.00015999,2]
[419013205,1774751448391,-552.09,0.00015999,2]
[419013206,1774751448400,-552.09,0.00015999,2]
[419013207,1774751448411,-552.09,0.00015999,2]
[419013208,1774751448421,-552.09,0.00015999,2]
[419013209,1774751448430,-552.28062743,0.00015999,2]
[419013210,1774751448440,-2367746.81762918,0.00016,2]
[419013211,1774751448449,-1000.0,0.00016,2]
[419013212,1774751448458,-1000.0,0.00016,2]
[419013213,1774751448468,-1000.0,0.00016,2]
[419013214,1774751448477,-1000.0,0.00016,2]
[419013215,1774751448486,-1131.61932121,0.00016,2]
[419013216,1774751448495,-1310010.02554659,0.00016,2]
[419013217,1774751449015,-500.0,0.00011172,2]
[419013218,1774751449024,-282.18413519,0.00011172,2]
[419013219,1774751449033,-500.0,0.00011172,2]
[419013220,1774751449042,-500.0,0.00011172,2]
[419013221,1774751449052,-158.88661587,0.00011172,2]
[419013222,1774751449062,-500.0,0.0001329,2]
[419013223,1774751449072,-500.0,0.00013564,2]
[419013224,1774751449082,-500.0,0.00013838,2]
[419013225,1774751449092,-337.97256879,0.00014112,2]
[419013226,1774751449101,-202.095325,0.00015438,7]
[419013227,1774751449110,-2102.32516194,0.00016,2]
[419013228,1774751449125,-2137.57257649,0.00016,2]
[419013229,1774751452019,665.8540496,0.000111,2]
[419013230,1774751463430,9334.1559504,0.00011272,2]
[419013232,1774751653362,1018.1,0.00010433,2]
[419013233,1774751764177,322.65,0.0001028,2]
[419013235,1774751804744,-267.63845575,0.000107,2]
[419013236,1774751804774,-300.0,0.000108,3]
[419013237,1774751804802,-3481.10474304,0.000108,2]
[419013238,1774751804831,-250.0,0.000108,2]
[419013239,1774751804860,-267.63845574,0.0001085,2]
[419013240,1774751805195,-1200.0,0.00010899,2]
[419013241,1774751805225,-600.0,0.000109,3]
[419013242,1774751805254,-252.5159786,0.00010919,2]
[419013243,1774751805284,-300.0,0.00010998,2]
[419013244,1774751805312,-300.0,0.00010998,2]
[419013245,1774751805340,-286.51790996,0.00010999,2]
[419013246,1774751805369,-267.63845574,0.00010999,2]
[419013247,1774751805399,-530.0,0.00011009,2]
[419013248,1774751805426,-1200.0,0.00011045,2]
[419013249,1774751807842,-185.12,0.00011047,2]
[419013250,1774751807872,-1359.023,0.00011047,2]
[419013251,1774751807904,-335.27257938,0.00011072,2]
[419013252,1774751807934,-626.99704098,0.00011072,2]
[419013253,1774751807962,-178.93015126,0.00011072,2]
[419013254,1774751807991,-562.70572857,0.00011072,2]
[419013255,1774751808020,-582.6222934,0.00011072,2]
[419013256,1774751808049,-582.6222934,0.00011072,2]
[419013257,1774751810786,-2701.24991713,0.00011072,2]
[419013258,1774751810814,-500.0,0.00011073,2]
[419013259,1774751810855,-429.85911728,0.00011073,2]
[419013260,1774751810886,-500.0,0.00011073,2]
[419013261,1774751810915,-500.0,0.00011073,2]
[419013262,1774751810946,-237.79193118,0.00011073,2]
[419013263,1774751811027,-262.20806882,0.00011073,2]
[419013264,1774751811056,-500.0,0.00011073,2]
[419013265,1774751811085,-500.0,0.00011073,2]
[419013266,1774751811113,-454.80496102,0.00011073,2]
[419013267,1774751811140,-501.32363081,0.00011073,2]
[419013268,1774751811168,-409.82711305,0.00011073,2]
[419013269,1774751811196,-500.0,0.00011073,2]
[419013270,1774751811224,-500.0,0.00011073,2]
[419013271,1774751811252,-500.0,0.00011073,2]
[419013272,1774751811280,-500.0,0.00011073,2]
[419013273,1774751811313,-243.6824526,0.00011098,2]
[419013274,1774751825561,169.0,0.00010522,2]
[419013275,1774751847416,257.87,0.0001051,2]
[419013276,1774751860938,2000.0,0.00010427,2]
[419013277,1774751887056,159.0,0.00010522,2]
[419013278,1774751890466,160.0,0.00010522,2]
[419013279,1774751904598,318.65,0.00010064,2]
[419013280,1774751909485,182.7605264,0.0001,2]
[419013281,1774751945240,159.0,0.00010522,2]
[419013282,1774751948213,160.0,0.00010522,2]
[419013283,1774751991347,1852.42,0.00010362,2]
[419013284,1774752006106,160.0,0.00010522,2]
[419013285,1774752007571,158.0,0.00010522,2]
[419013286,1774752071206,160.0,0.00010522,2]
[419013287,1774752098999,-957.44,0.00010705,2]
[419013288,1774752099032,-482.13,0.00010711,2]
[419013289,1774752099062,-250.0,0.00010888,2]
[419013290,1774752099090,-200.0,0.00011,2]
[419013291,1774752099118,-300.0,0.0001107,2]
[419013292,1774752099145,-1200.0,0.00011071,2]
[419013293,1774752099174,-300.0,0.00011071,2]
[419013294,1774752099202,-1200.0,0.00011071,2]
[419013295,1774752099230,-70.87,0.00011072,2]
[419013296,1774752099453,-79.13,0.00011072,2]
[419013297,1774752099481,-375.13715238,0.00011072,2]
[419013298,1774752099510,-238.17375404,0.00011072,2]
[419013299,1774752099540,-1800.83327808,0.00011072,2]
[419013300,1774752103147,-1867.67992889,0.00011072,2]
[419013301,1774752107283,-6479.9073103,0.00011029,2]
[419013302,1774752107368,-10000.01,0.00011029,2]
[419013303,1774752111440,-384.5671219,0.00011029,2]
[419013304,1774752111467,-9230.8757562,0.00011029,2]
[419013305,1774752126992,162.0,0.00010522,2]
[419013306,1774752148445,619.08,0.00010197,2]
[419013307,1774752149806,268.15780202,0.0001,2]
[419013308,1774752153416,1600.0,0.00010314,2]
[419013309,1774752186313,162.0,0.00010522,2]
[419013310,1774752246459,163.0,0.00010522,2]
[419013311,1774752310728,161.0,0.00010522,2]
[419013312,1774752310788,163.0,0.00010522,2]
[419013313,1774752316335,-1200.0,0.00010998,2]
[419013314,1774752316365,-300.0,0.00010998,2]
[419013315,1774752316395,-300.0,0.00010998,2]
[419013316,1774752316426,-150.0,0.00010998,2]
[419013317,1774752316455,-879.5849,0.00010999,2]
[419013318,1774752316741,-1042.60239798,0.00010999,2]
[419013319,1774752323511,-10000.01,0.00010999,2]
[419013320,1774752333484,390.94,0.00010186,2]
[419013322,1774752339726,1717.75,0.00010278,2]
[419013324,1774752366968,163.0,0.00010522,2]
[419013325,1774752407829,-150.0,0.00010959,2]
[419013326,1774752407852,-49850.0,0.00010999,2]
[419013327,1774752408223,500.0,0.00010304,2]
[419013328,1774752448273,300.0,0.000105,3]
[419013329,1774752458357,540.0,9.793e-05,2]
[419013332,1774752611050,163.0,0.00010522,2]
[419013346,1774752631543,-280.63250004,0.00010593,2]
[419013347,1774752631648,-234.87749996,0.00010593,2]
[419013348,1774752631658,-700.0,0.000106,3]
[419013349,1774752631667,-1100.0,0.000107,3]
[419013350,1774752631677,-1400.0,0.000108,3]
[419013351,1774752631687,-158.7825027,0.00010898,2]
[419013352,1774752631696,-1800.0,0.000109,3]
[419013353,1774752631706,-436.96672005,0.000109,2]
[419013354,1774752631715,-436.96672005,0.000109,2]
[419013355,1774752631725,-166.66,0.00010959,2]
[419013356,1774752631734,-266.85386156,0.00010963,2]
[419013357,1774752631744,-1200.0,0.00010971,2]
[419013358,1774752631754,-300.0,0.00010971,2]
[419013359,1774752631763,-500.0,0.00010972,2]
[419013360,1774752631772,-296.95644632,0.00010972,2]
[419013361,1774752631781,-500.0,0.00010972,2]
[419013362,1774752631791,-500.0,0.00010972,2]
[419013363,1774752631801,-161.48271953,0.00010972,2]
[419013365,1774752631810,-647.52889463,0.00010972,2]
[419013367,1774752631819,-500.0,0.00010972,2]
[419013369,1774752631828,-256.3175474,0.00010972,2]
[419013371,1774752631838,-300.0,0.00010972,2]
[419013373,1774752631847,-150.0,0.00010972,2]
[419013375,1774752631856,-97677.31632002,0.00010973,2]
[419013379,1774752631879,-3766.60401429,0.00010973,2]
[419013381,1774752631890,-462.46160238,0.00010973,2]
[419013384,1774752631905,-580.65797841,0.00010973,2]
[419013392,1774752637777,-1397512.9600849,0.00010973,2]
[419013393,1774752637787,-12929.39560202,0.00010999,2]
[419013394,1774752637796,-2500.0,0.00010999,2]
[419013395,1774752637806,-1000.0,0.00011034,2]
[419013396,1774752637815,-46980.0102636,0.00011035,2]
[419013397,1774752637824,-1931.9269578,0.00011035,2]
[419013398,1774752637834,-1278.92098356,0.00011035,2]
[419013399,1774752637843,-251.28305486,0.00011042,2]
[419013400,1774752637853,-280.0,0.00011051,2]
[419013401,1774752637863,-428.0,0.00011064,2]
[419013402,1774752637872,-213.0,0.00011064,2]
[419013403,1774752637882,-166.66,0.00011068,2]
[419013404,1774752637892,-250.09143492,0.00011072,2]
[419013405,1774752637901,-7509.77009482,0.00011072,2]
[419013406,1774752637910,-1200.55551872,0.00011072,2]